fUSD/lending_fUSD_20241202
["ID","MTS","AMOUNT","RATE_DAILY","PERIOD"]
[344000979,1733173912633,-2182.5,0.00025273,120]
[344000980,1733173912643,-1036.91,0.00025273,120]
[344000981,1733173912654,-500.0,0.00025273,120]
[344000982,1733173912664,-500.0,0.00025273,120]
[344000983,1733173912675,-2342.53,0.00025273,120]
[344000984,1733173912685,-500.0,0.00025273,120]
[344000985,1733173912695,-500.0,0.00025273,120]
[344000986,1733173912706,-711.18,0.00025273,120]
[344000987,1733173912716,-606.98,0.00025273,120]
[344000988,1733173912726,-663.22,0.00025273,120]
[344000989,1733173912736,-455.7287301,0.00025273,120]
[344000990,1733173912746,-500.0,0.00025273,120]
[344000991,1733173912757,-983.38,0.00025273,120]
[344000992,1733173912766,-3648.98,0.00025273,120]
[344000993,1733173912776,-500.0,0.00025273,120]
[344000994,1733173912786,-500.0,0.00025273,120]
[344000995,1733173912795,-847.93,0.00025273,120]
[344000996,1733173912805,-465.69743577,0.00025273,120]
[344000997,1733173912815,-633.7,0.00025273,120]
[344000998,1733173912824,-500.0,0.00025273,120]
[344000999,1733173912832,-500.0,0.00025273,120]
[344001000,1733173912842,-6580.92,0.00025273,120]
[344001001,1733173912852,-1007.6,0.00025273,120]
[344001002,1733173912869,-4065.82,0.00025273,120]
[344001003,1733173912879,-1847.62,0.00025273,120]
[344001004,1733173912889,-500.0,0.00025273,120]
[344001005,1733173912898,-2617.71,0.00025273,120]
[344001006,1733173912908,-3197.83,0.00025273,30]
[344001007,1733173912918,-500.0,0.00025273,120]
[344001008,1733173912927,-2659.89,0.00025273,120]
[344001009,1733173912937,-1164.27,0.00025273,120]
[344001010,1733173912948,-875.51,0.00025273,120]
[344001011,1733173912959,-500.0,0.00025273,120]
[344001012,1733173912968,-745.39,0.00025273,120]
[344001013,1733173912978,-500.0,0.00025273,120]
[344001014,1733173912988,-1289.72,0.00025273,120]
[344001015,1733173912997,-1555.91,0.00025273,120]
[344001016,1733173913007,-500.0,0.00025273,120]
[344001017,1733173913017,-1369.01,0.00025273,120]
[344001018,1733173913027,-2326.23,0.00025273,120]
[344001019,1733173913037,-4563.76,0.00025273,120]
[344001020,1733173913047,-500.0,0.00025273,120]
[344001021,1733173913057,-3313.85,0.00025273,120]
[344001022,1733173913067,-500.0,0.00025273,120]
[344001023,1733173913076,-1773.0,0.00025273,120]
[344001024,1733173913086,-513.74,0.00025273,120]
[344001025,1733173913096,-500.0,0.00025273,120]
[344001026,1733173913107,-1782.0,0.00025273,120]
[344001027,1733173913121,-1699.53,0.00025273,120]
[344001028,1733173913131,-659.33,0.00025273,120]
[344001029,1733173913142,-1698.97,0.00025273,120]
[344001030,1733173913153,-500.0,0.00025273,120]
[344001031,1733173913163,-1967.42,0.00025273,120]
[344001032,1733173913173,-511.762293,0.00025273,120]
[344001033,1733173913183,-285.84428199,0.00025273,120]
[344001034,1733173913193,-1160.08,0.00025273,120]
[344001035,1733173913203,-1338.45,0.00025273,120]
[344001036,1733173913213,-9046.09,0.00025273,120]
[344001037,1733173913223,-24644.45,0.00025273,120]
[344001038,1733173913233,-500.0,0.00025273,120]
[344001039,1733173913242,-525.37,0.00025273,120]
[344001040,1733173913253,-1350.25,0.00025273,120]
[344001041,1733173913263,-2066.7,0.00025273,120]
[344001042,1733173913274,-1276.08,0.00025273,120]
[344001043,1733173913285,-500.0,0.00025273,120]
[344001044,1733173913296,-500.0,0.00025273,120]
[344001045,1733173913307,-2338.09,0.00025273,120]
[344001046,1733173913319,-2682.67,0.00025273,120]
[344001047,1733173913331,-647.31016651,0.00025273,120]
[344001048,1733173913342,-500.0,0.00025273,120]
[344001049,1733173913362,-1872.52,0.00025273,120]
[344001050,1733173913373,-2039.33,0.00025273,120]
[344001051,1733173913386,-500.0,0.00025273,120]
[344001052,1733173913398,-500.0,0.00025273,120]
[344001053,1733173913409,-897.51,0.00025273,120]
[344001054,1733173913420,-219.83085247,0.00025273,120]
[344001055,1733173913432,-500.0,0.00025273,120]
[344001056,1733173913443,-6438.25,0.00025273,120]
[344001057,1733173913453,-500.0,0.00025273,120]
[344001058,1733173913464,-682.89,0.00025273,120]
[344001059,1733173913476,-500.0,0.00025273,120]
[344001060,1733173913486,-540.95,0.00025273,120]
[344001061,1733173913497,-740.7,0.00025273,120]
[344001062,1733173913508,-500.0,0.00025273,120]
[344001063,1733173913519,-500.0,0.00025273,120]
[344001064,1733173913530,-7369.6,0.00025273,120]
[344001065,1733173913541,-1286.51,0.00025273,120]
[344001066,1733173913552,-500.0,0.00025273,120]
[344001067,1733173913563,-578.0,0.00025273,2]
[344001068,1733173913574,-946.28,0.00025273,120]
[344001069,1733173913586,-500.0,0.00025273,120]
[344001070,1733173913597,-1889.02,0.00025273,120]
[344001071,1733173913609,-1816.72,0.00025273,120]
[344001072,1733173913624,-1346.79,0.00025273,120]
[344001073,1733173913636,-500.0,0.00025273,120]
[344001074,1733173913646,-8662.17,0.00025273,120]
[344001075,1733173913658,-518.39,0.00025273,120]
[344001076,1733173913670,-500.0,0.00025273,120]
[344001077,1733173913682,-1103.72,0.00025273,120]
[344001078,1733173913694,-522.13,0.00025273,120]
[344001079,1733173913706,-755.86,0.00025273,120]
[344001080,1733173913718,-500.0,0.00025273,120]
[344001081,1733173913730,-500.0,0.00025273,120]
[344001082,1733173913741,-4388.77,0.00025273,120]
[344001083,1733173913753,-500.0,0.00025273,120]
[344001084,1733173913765,-500.0,0.00025273,120]
[344001085,1733173913775,-2392.08,0.00025273,120]
[344001086,1733173913786,-2170.02,0.00025273,120]
[344001087,1733173913796,-500.0,0.00025273,120]
[344001088,1733173913807,-500.0,0.00025273,120]
[344001089,1733173913818,-1793.55,0.00025273,120]
[344001090,1733173913828,-508.32060665,0.00025273,120]
[344001091,1733173913838,-649.83,0.00025273,120]
[344001092,1733173913848,-2061.89,0.00025273,120]
[344001093,1733173913859,-1399.97,0.00025273,120]
[344001094,1733173913873,-1370.27,0.00025273,120]
[344001095,1733173913888,-500.0,0.00025273,120]
[344001096,1733173913898,-1558.85,0.00025273,120]
[344001097,1733173913908,-2372.39,0.00025273,120]
[344001098,1733173913919,-500.0,0.00025273,120]
[344001099,1733173913930,-500.0,0.00025273,120]
[344001100,1733173913939,-5439.68,0.00025273,120]
[344001101,1733173913950,-1298.83,0.00025273,120]
[344001102,1733173913960,-1608.76,0.00025273,120]
[344001103,1733173913970,-500.0,0.00025273,120]
[344001104,1733173913980,-2392.63,0.00025273,120]
[344001105,1733173913990,-1939.36,0.00025273,120]
[344001106,1733173914000,-1599.04,0.00025273,120]
[344001107,1733173914010,-500.0,0.00025273,120]
[344001108,1733173914020,-500.0,0.00025273,120]
[344001109,1733173914030,-909.62,0.00025273,120]
[344001110,1733173914039,-500.0,0.00025273,120]
[344001111,1733173914048,-500.0,0.00025273,120]
[344001112,1733173914058,-927.9,0.00025273,120]
[344001113,1733173914068,-263.569709,0.00025273,7]
[344001114,1733173914078,-500.0,0.00025273,120]
[344001115,1733173914087,-500.0,0.00025273,120]
[344001116,1733173914097,-1475.79,0.00025273,120]
[344001117,1733173914106,-522.98,0.00025273,120]
[344001118,1733173914118,-1962.89,0.00025273,120]
[344001119,1733173914128,-582.9,0.00025273,120]
[344001120,1733173914137,-500.0,0.00025273,120]
[344001121,1733173914147,-500.0,0.00025273,120]
[344001122,1733173914156,-643.67,0.00025273,120]
[344001123,1733173914166,-500.0,0.00025273,120]
[344001124,1733173914175,-263.569709,0.00025273,7]
[344001125,1733173914185,-3892.9,0.00025273,120]
[344001126,1733173914194,-500.0,0.00025273,120]
[344001127,1733173914204,-500.0,0.00025273,120]
[344001128,1733173914213,-10611.25,0.00025273,120]
[344001129,1733173914223,-1665.73,0.00025273,120]
[344001130,1733173914233,-616.84,0.00025273,120]
[344001131,1733173914243,-736.85,0.00025273,120]
[344001132,1733173914252,-500.0,0.00025273,120]
[344001133,1733173914262,-500.0,0.00025273,120]
[344001134,1733173914273,-500.0,0.00025273,120]
[344001135,1733173914282,-500.0,0.00025273,120]
[344001136,1733173914292,-500.0,0.00025273,120]
[344001137,1733173914302,-1302.88,0.00025273,120]
[344001138,1733173914312,-500.0,0.00025273,120]
[344001139,1733173914322,-2854.12,0.00025273,120]
[344001140,1733173914332,-979.53,0.00025273,120]
[344001141,1733173914343,-593.87,0.00025273,120]
[344001142,1733173914352,-1872.16,0.00025273,120]
[344001143,1733173914365,-726.47,0.00025273,120]
[344001144,1733173914378,-500.0,0.00025273,120]
[344001145,1733173914388,-500.0,0.00025273,120]
[344001146,1733173914398,-1483.4,0.00025273,120]
[344001147,1733173914408,-1049.92,0.00025273,120]
[344001148,1733173914418,-6381.2,0.00025273,120]
[344001149,1733173914428,-500.0,0.00025273,120]
[344001150,1733173914438,-500.0,0.00025273,120]
[344001151,1733173914449,-652.54,0.00025273,120]
[344001152,1733173914460,-500.0,0.00025273,120]
[344001153,1733173914470,-151.0,0.00025273,7]
[344001154,1733173914481,-512.88,0.00025273,120]
[344001155,1733173914491,-820.67,0.00025273,120]
[344001156,1733173914503,-1812.25,0.00025273,120]
[344001157,1733173914513,-4197.22,0.00025273,120]
[344001158,1733173914524,-500.0,0.00025273,120]
[344001159,1733173914534,-500.0,0.00025273,120]
[344001160,1733173914544,-500.0,0.00025273,120]
[344001161,1733173914554,-500.0,0.00025273,120]
[344001162,1733173914564,-26187.41,0.00025273,2]
[344001163,1733173914574,-1028.34,0.00025273,120]
[344001164,1733173914584,-500.0,0.00025273,120]
[344001165,1733173914594,-867.87,0.00025273,120]
[344001166,1733173914603,-1091.64,0.00025273,120]
[344001167,1733173914616,-500.0,0.00025273,120]
[344001168,1733173914626,-291.836895,0.00025273,7]
[344001169,1733173914636,-2640.34,0.00025273,120]
[344001170,1733173914646,-500.0,0.00025273,120]
[344001171,1733173914657,-2790.99,0.00025273,120]
[344001172,1733173914667,-2199.84,0.00025273,120]
[344001173,1733173914678,-2454.88,0.00025273,120]
[344001174,1733173914687,-2904.66,0.00025273,120]
[344001175,1733173914697,-6753.97,0.00025273,120]
[344001176,1733173914707,-603.58,0.00025273,120]
[344001177,1733173914717,-500.0,0.00025273,120]
[344001178,1733173914727,-2736.07,0.00025273,120]
[344001179,1733173914737,-500.0,0.00025273,5]
[344001180,1733173914747,-2739.2,0.00025273,120]
[344001181,1733173914758,-500.0,0.00025273,120]
[344001182,1733173914768,-500.0,0.00025273,120]
[344001183,1733173914778,-979.77,0.00025273,120]
[344001184,1733173914788,-500.0,0.00025273,120]
[344001185,1733173914798,-500.0,0.00025273,120]
[344001186,1733173914808,-331.84631339,0.00025273,120]
[344001187,1733173914818,-672.31,0.00025273,120]
[344001188,1733173914827,-1893.22,0.00025273,120]
[344001189,1733173914837,-500.0,0.00025273,120]
[344001190,1733173914847,-500.0,0.00025273,120]
[344001191,1733173914858,-500.0,0.00025273,120]
[344001192,1733173914873,-500.0,0.00025273,120]
[344001193,1733173914883,-1241.63,0.00025273,120]
[344001194,1733173914892,-1180.4,0.00025273,120]
[344001195,1733173914903,-500.0,0.00025273,120]
[344001196,1733173914913,-2628.84,0.00025273,120]
[344001197,1733173914923,-500.0,0.00025273,120]
[344001198,1733173914932,-500.0,0.00025273,120]
[344001199,1733173914942,-824.76,0.00025273,120]
[344001200,1733173914951,-5960.28,0.00025273,120]
[344001201,1733173914961,-2541.6,0.00025273,120]
[344001202,1733173914971,-4143.73,0.00025273,120]
[344001203,1733173914981,-2304.52,0.00025273,120]
[344001204,1733173914991,-10705.45,0.00025273,120]
[344001205,1733173915000,-1014.76,0.00025273,120]
[344001206,1733173915011,-560.07,0.00025273,120]
[344001207,1733173915022,-500.0,0.00025273,120]
[344001208,1733173915032,-914.52,0.00025273,120]
[344001209,1733173915041,-500.0,0.00025273,120]
[344001210,1733173915051,-500.0,0.00025273,120]
[344001211,1733173915060,-584.36,0.00025273,120]
[344001212,1733173915069,-500.0,0.00025273,120]
[344001213,1733173915079,-500.0,0.00025273,120]
[344001214,1733173915090,-969.83,0.00025273,120]
[344001215,1733173915101,-3572.16,0.00025273,120]
[344001216,1733173915111,-500.0,0.00025273,120]
[344001217,1733173915122,-1217.61,0.00025273,120]
[344001218,1733173915132,-675.95,0.00025273,120]
[344001219,1733173915142,-4489.25,0.00025273,120]
[344001220,1733173915152,-500.0,0.00025273,120]
[344001221,1733173915162,-2779.84,0.00025273,120]
[344001222,1733173915172,-500.0,0.00025273,120]
[344001223,1733173915182,-151.0,0.00025273,7]
[344001224,1733173915193,-2155.31,0.00025273,120]
[344001225,1733173915203,-500.0,0.00025273,120]
[344001226,1733173915213,-603.22,0.00025273,120]
[344001227,1733173915223,-2057.97,0.00025273,120]
[344001228,1733173915232,-2649.58,0.00025273,120]
[344001229,1733173915241,-500.0,0.00025273,120]
[344001230,1733173915251,-623.17,0.00025273,120]
[344001231,1733173915261,-1651.92,0.00025273,120]
[344001232,1733173915271,-500.0,0.00025273,120]
[344001233,1733173915282,-151.0,0.00025273,7]
[344001234,1733173915293,-500.0,0.00025273,120]
[344001235,1733173915303,-1996.57,0.00025273,120]
[344001236,1733173915314,-500.0,0.00025273,120]
[344001237,1733173915324,-1962.75,0.00025273,120]
[344001238,1733173915333,-595.5,0.00025273,120]
[344001239,1733173915343,-640.15,0.00025273,120]
[344001240,1733173915353,-500.0,0.00025273,120]
[344001241,1733173915367,-500.0,0.00025273,120]
[344001242,1733173915377,-4417.87,0.00025273,120]
[344001243,1733173915388,-500.0,0.00025273,120]
[344001244,1733173915397,-500.0,0.00025273,120]
[344001245,1733173915407,-3992.49,0.00025273,120]
[344001246,1733173915417,-827.18,0.00025273,120]
[344001247,1733173915428,-2336.55,0.00025273,120]
[344001248,1733173915438,-500.0,0.00025273,120]
[344001249,1733173915448,-864.88,0.00025273,120]
[344001250,1733173915458,-1519.09,0.00025273,120]
[344001251,1733173915468,-500.0,0.00025273,120]
[344001252,1733173915477,-500.0,0.00025273,120]
[344001253,1733173915487,-694.9,0.00025273,120]
[344001254,1733173915497,-5303.88,0.00025273,120]
[344001255,1733173915507,-672.78,0.00025273,120]
[344001256,1733173915517,-500.0,0.00025273,120]
[344001257,1733173915527,-710.01,0.00025273,120]
[344001258,1733173915537,-1760.11,0.00025273,120]
[344001259,1733173915546,-2595.08,0.00025273,120]
[344001260,1733173915555,-710.17,0.00025273,60]
[344001261,1733173915566,-500.0,0.00025273,120]
[344001262,1733173915576,-4402.57,0.00025273,120]
[344001263,1733173915586,-500.0,0.00025273,120]
[344001264,1733173915596,-639.14,0.00025273,120]
[344001265,1733173915606,-23305.72,0.00025273,120]
[344001266,1733173915619,-380.160124,0.00025273,7]
[344001267,1733173915629,-500.0,0.00025273,120]
[344001268,1733173915639,-747.26,0.00025273,120]
[344001269,1733173915649,-533.85799,0.00025273,7]
[344001270,1733173915658,-2437.86,0.00025273,120]
[344001271,1733173915668,-500.0,0.00025273,120]
[344001272,1733173915678,-500.0,0.00025273,120]
[344001273,1733173915688,-753.05,0.00025273,120]
[344001274,1733173915698,-500.0,0.00025273,120]
[344001275,1733173915710,-500.0,0.00025273,120]
[344001276,1733173915721,-4219.0,0.00025273,120]
[344001277,1733173915731,-579.88,0.00025273,120]
[344001278,1733173915741,-500.0,0.00025273,120]
[344001279,1733173915752,-380.160124,0.00025273,7]
[344001280,1733173915766,-500.0,0.00025273,120]
[344001281,1733173915779,-533.85799,0.00025273,7]
[344001282,1733173915791,-5238.16,0.00025273,120]
[344001283,1733173915803,-6148.5,0.00025273,120]
[344001284,1733173915814,-1805.43,0.00025273,120]
[344001285,1733173915823,-500.0,0.00025273,120]
[344001286,1733173915833,-3944.81,0.00025273,120]
[344001287,1733173915843,-1213.72,0.00025273,120]
[344001288,1733173915853,-3015.48,0.00025273,120]
[344001289,1733173915867,-500.0,0.00025273,120]
[344001290,1733173915877,-2376.79,0.00025273,120]
[344001291,1733173915891,-500.0,0.00025273,120]
[344001292,1733173915901,-714.7,0.00025273,120]
[344001293,1733173915911,-500.0,0.00025273,120]
[344001294,1733173915921,-1040.46,0.00025273,120]
[344001295,1733173915932,-1249.26,0.00025273,120]
[344001296,1733173915943,-500.0,0.00025273,120]
[344001297,1733173915952,-500.0,0.00025273,120]
[344001298,1733173915965,-500.0,0.00025273,120]
[344001299,1733173915975,-500.0,0.00025273,120]
[344001300,1733173915997,-500.0,0.00025273,120]
[344001301,1733173916008,-500.0,0.00025273,120]
[344001302,1733173916019,-565.32,0.00025273,120]
[344001303,1733173916029,-6531.02,0.00025273,120]
[344001304,1733173916039,-870.34,0.00025273,120]
[344001305,1733173916049,-666.38,0.00025273,120]
[344001306,1733173916059,-19834.57,0.00025273,120]
[344001307,1733173916069,-664.85,0.00025273,120]
[344001308,1733173916079,-2003.87,0.00025273,120]
[344001309,1733173916090,-1854.93,0.00025273,120]
[344001310,1733173916100,-500.0,0.00025273,120]
[344001311,1733173916110,-500.0,0.00025273,120]
[344001312,1733173916122,-500.0,0.00025273,120]
[344001313,1733173916132,-1108.78,0.00025273,10]
[344001314,1733173916141,-1037.122995,0.00025273,7]
[344001315,1733173916152,-3062.53,0.00025273,120]
[344001316,1733173916162,-500.0,0.00025273,120]
[344001317,1733173916172,-816.91,0.00025273,120]
[344001318,1733173916182,-500.0,0.00025273,120]
[344001319,1733173916192,-1037.122995,0.00025273,7]
[344001320,1733173916203,-500.0,0.00025273,120]
[344001321,1733173916212,-500.0,0.00025273,120]
[344001322,1733173916223,-1789.3,0.00025273,120]
[344001323,1733173916233,-3210.77,0.00025273,120]
[344001324,1733173916243,-3418.76,0.00025273,120]
[344001325,1733173916253,-500.0,0.00025273,120]
[344001326,1733173916263,-2795.8,0.00025273,2]
[344001327,1733173916273,-789.42,0.00025273,120]
[344001328,1733173916283,-500.0,0.00025273,120]
[344001329,1733173916293,-1753.06,0.00025273,120]
[344001330,1733173916303,-965.38,0.00025273,120]
[344001331,1733173916313,-500.0,0.00025273,120]
[344001332,1733173916323,-500.0,0.00025273,120]
[344001333,1733173916333,-7446.32,0.00025273,120]
[344001334,1733173916343,-500.0,0.00025273,120]
[344001335,1733173916354,-500.0,0.00025273,120]
[344001336,1733173916365,-871.7,0.00025273,120]
[344001337,1733173916376,-500.0,0.00025273,120]
[344001338,1733173916386,-500.0,0.00025273,120]
[344001339,1733173916396,-1307.41,0.00025273,120]
[344001340,1733173916406,-500.0,0.00025273,120]
[344001341,1733173916416,-500.0,0.00025273,120]
[344001342,1733173916427,-1352.91,0.00025273,120]
[344001343,1733173916436,-500.0,0.00025273,120]
[344001344,1733173916447,-961.51,0.00025273,120]
[344001345,1733173916457,-2517.48,0.00025273,120]
[344001346,1733173916467,-285.272341,0.00025273,7]
[344001347,1733173916477,-586.31,0.00025273,120]
[344001348,1733173916487,-1864.86,0.00025273,120]
[344001349,1733173916498,-9844.34,0.00025273,120]
[344001350,1733173916508,-1084.05,0.00025273,120]
[344001351,1733173916518,-537.68,0.00025273,120]
[344001352,1733173916529,-1345.02,0.00025273,120]
[344001353,1733173916539,-626.33,0.00025273,120]
[344001354,1733173916550,-500.0,0.00025273,120]
[344001355,1733173916560,-13662.41,0.00025273,120]
[344001356,1733173916571,-729.63,0.00025273,120]
[344001357,1733173916581,-1371.25,0.00025273,120]
[344001358,1733173916591,-285.272341,0.00025273,7]
[344001359,1733173916602,-4422.48,0.00025273,120]
[344001360,1733173916613,-1934.51,0.00025273,120]
[344001361,1733173916623,-640.75,0.00025273,120]
[344001362,1733173916633,-742.08,0.00025273,120]
[344001363,1733173916643,-500.0,0.00025273,120]
[344001364,1733173916653,-2069.24,0.00025273,120]
[344001365,1733173916663,-500.0,0.00025273,120]
[344001366,1733173916674,-500.0,0.00025273,120]
[344001367,1733173916684,-695.24,0.00025273,120]
[344001368,1733173916695,-694.66,0.00025273,120]
[344001369,1733173916705,-1084.86,0.00025273,120]
[344001370,1733173916715,-500.0,0.00025273,120]
[344001371,1733173916726,-2311.2,0.00025273,120]
[344001372,1733173916736,-500.0,0.00025273,120]
[344001373,1733173916747,-151.0,0.00025273,7]
[344001374,1733173916757,-500.0,0.00025273,120]
[344001375,1733173916768,-500.0,0.00025273,120]
[344001376,1733173916779,-2616.58,0.00025273,120]
[344001377,1733173916790,-377.78983343,0.00025273,120]
[344001378,1733173916800,-6905.29,0.00025273,120]
[344001379,1733173916811,-607.96,0.00025273,120]
[344001380,1733173916822,-2653.23,0.00025273,120]
[344001381,1733173916833,-5006.2,0.00025273,120]
[344001382,1733173916843,-1291.59,0.00025273,120]
[344001383,1733173916853,-451.508727,0.00025273,7]
[344001384,1733173916869,-16124.25,0.00025273,120]
[344001385,1733173916879,-903.44,0.00025273,120]
[344001386,1733173916889,-4817.19,0.00025273,120]
[344001387,1733173916900,-500.0,0.00025273,120]
[344001388,1733173916911,-500.0,0.00025273,120]
[344001389,1733173916921,-500.0,0.00025273,120]
[344001390,1733173916931,-151.0,0.00025273,7]
[344001391,1733173916941,-566.09897287,0.00025273,120]
[344001392,1733173916952,-1028.78,0.00025273,120]
[344001393,1733173916964,-451.508727,0.00025273,7]
[344001394,1733173916975,-500.0,0.00025273,120]
[344001395,1733173916986,-500.0,0.00025273,30]
[344001396,1733173916998,-500.0,0.00025273,120]
[344001397,1733173917009,-642.19,0.00025273,120]
[344001398,1733173917021,-500.0,0.00025273,120]
[344001399,1733173917031,-889.53,0.00025273,120]
[344001400,1733173917041,-500.0,0.00025273,120]
[344001401,1733173917051,-1588.96,0.00025273,120]
[344001402,1733173917061,-2491.72,0.00025273,120]
[344001403,1733173917071,-1278.75,0.00025273,120]
[344001404,1733173917081,-500.0,0.00025273,2]
[344001405,1733173917091,-280.0,0.000253,10]
[344001406,1733173917100,-3912.0,0.000253,13]
[344001407,1733173917110,-5094.22,0.000253,14]
[344001408,1733173917122,-200.0,0.00025361,120]
[344001409,1733173917132,-1500.0,0.00025364,2]
[344001410,1733173917142,-500.0,0.000254,2]
[344001411,1733173917152,-2000.0,0.000255,120]
[344001412,1733173917162,-1708.0,0.000255,2]
[344001413,1733173917172,-27024.32,0.0002552,5]
[344001414,1733173917183,-25109.26,0.0002552,5]
[344001415,1733173917193,-58218.8,0.0002552,5]
[344001416,1733173917203,-5779.43,0.0002552,5]
[344001417,1733173917213,-34444.5,0.0002552,5]
[344001418,1733173917224,-8458.66,0.00025523,2]
[344001419,1733173917234,-300.0,0.00025546,10]
[344001420,1733173917244,-254.14766953,0.00025546,10]
[344001421,1733173917254,-300.0,0.00025546,10]
[344001422,1733173917264,-300.0,0.00025546,10]
[344001423,1733173917275,-300.0,0.00025546,10]
[344001424,1733173917285,-300.0,0.00025546,10]
[344001425,1733173917295,-300.0,0.00025546,10]
[344001426,1733173917306,-300.0,0.00025546,10]
[344001427,1733173917316,-594161.71,0.00025546,5]
[344001428,1733173917326,-288750.13,0.00025546,5]
[344001429,1733173917336,-12313.84,0.00025546,5]
[344001430,1733173917347,-62715.98,0.00025546,5]
[344001431,1733173917357,-32259.92,0.00025546,5]
[344001432,1733173917370,-34921.78,0.00025546,5]
[344001433,1733173917385,-11489.82,0.00025546,5]
[344001434,1733173917395,-500.0,0.00025547,120]
[344001435,1733173917405,-500.0,0.00025547,120]
[344001436,1733173917416,-500.0,0.00025547,120]
[344001437,1733173917426,-500.0,0.00025547,120]
[344001438,1733173917436,-500.0,0.00025547,120]
[344001439,1733173917447,-500.0,0.00025547,120]
[344001440,1733173917457,-500.0,0.00025547,120]
[344001441,1733173917467,-182.76781822,0.00025547,120]
[344001442,1733173917477,-500.0,0.00025547,120]
[344001443,1733173917488,-500.0,0.00025547,120]
[344001444,1733173917499,-500.0,0.00025547,120]
[344001445,1733173917510,-500.0,0.00025547,120]
[344001446,1733173917521,-500.0,0.00025547,120]
[344001447,1733173917531,-500.0,0.00025547,120]
[344001448,1733173917542,-500.0,0.00025547,120]
[344001449,1733173917552,-500.0,0.00025547,120]
[344001450,1733173917562,-500.0,0.00025547,120]
[344001451,1733173917573,-500.0,0.00025547,120]
[344001452,1733173917583,-500.0,0.00025547,120]
[344001453,1733173917594,-500.0,0.00025547,120]
[344001454,1733173917605,-500.0,0.00025547,120]
[344001455,1733173917619,-500.0,0.00025547,120]
[344001456,1733173917629,-767.48,0.00025547,120]
[344001457,1733173917639,-500.0,0.00025547,120]
[344001458,1733173917650,-500.0,0.00025547,120]
[344001459,1733173917660,-500.0,0.00025547,120]
[344001460,1733173917670,-500.0,0.00025547,120]
[344001461,1733173917680,-621.58,0.00025547,120]
[344001462,1733173917690,-500.0,0.00025547,120]
[344001463,1733173917700,-500.0,0.00025547,120]
[344001464,1733173917711,-500.0,0.00025547,120]
[344001465,1733173917721,-1653.09,0.00025547,120]
[344001466,1733173917732,-500.0,0.00025547,120]
[344001467,1733173917742,-500.0,0.00025547,120]
[344001468,1733173917752,-1352.46,0.00025547,120]
[344001469,1733173917762,-500.0,0.00025547,120]
[344001470,1733173917773,-603.3,0.00025547,120]
[344001471,1733173917783,-500.0,0.00025547,120]
[344001472,1733173917794,-500.0,0.00025547,120]
[344001473,1733173917804,-1108.07,0.00025547,120]
[344001474,1733173917816,-1391.751336,0.00025547,120]
[344001475,1733173917826,-299.82155747,0.00025547,120]
[344001476,1733173917836,-561.01,0.00025547,120]
[344001477,1733173917846,-500.0,0.00025547,120]
[344001478,1733173917858,-548.32,0.00025547,120]